bitfinex/quotes_BTCUSD_20240821
["timestamp","ask_amount","ask_price","bid_price","bid_amount"]
[1724221693462,1.39401242,59811.0,59810.0,0.88385662]
[1724221693654,1.39501242,59811.0,59810.0,0.93269791]
[1724221693861,1.39401242,59811.0,59810.0,0.92069791]
[1724221694287,1.39601242,59811.0,59810.0,0.92069791]
[1724221694500,1.39201242,59811.0,59810.0,0.90869791]
[1724221694708,1.39301242,59811.0,59810.0,0.90869791]
[1724221694906,1.39301242,59811.0,59810.0,0.90869973]
[1724221695325,1.39401242,59811.0,59810.0,0.92069973]
[1724221695531,1.39301242,59811.0,59810.0,0.90869973]
[1724221695935,1.39401242,59811.0,59810.0,0.92069973]
[1724221696497,1.39501242,59811.0,59810.0,0.92069973]
[1724221696702,1.39401242,59811.0,59810.0,0.92069973]
[1724221697453,1.39701242,59811.0,59810.0,0.92069973]
[1724221697865,1.39401242,59811.0,59810.0,0.92069973]
[1724221699008,0.81171242,59811.0,59810.0,1.25189871]
[1724221699211,0.81171242,59811.0,59810.0,1.08470271]
[1724221699651,1.18781242,59811.0,59810.0,0.92069973]
[1724221700087,1.18781242,59811.0,59810.0,1.06824193]
[1724221700502,1.18781242,59811.0,59810.0,0.92069973]
[1724221700701,1.18781242,59811.0,59810.0,1.13794685]
[1724221701328,1.18781242,59811.0,59810.0,1.13861595]
[1724221702173,1.18781242,59811.0,59810.0,0.92062898]
[1724221705418,1.18781242,59811.0,59810.0,0.88378587]
[1724221705618,1.18781242,59811.0,59810.0,0.92062889]
[1724221706073,1.18781242,59811.0,59810.0,0.9206627]
[1724221706273,1.18781242,59811.0,59810.0,1.13913109]
[1724221706477,1.18781242,59811.0,59810.0,0.9206627]
[1724221707025,1.18781242,59811.0,59810.0,1.6039489]
[1724221708024,1.18781242,59811.0,59810.0,1.43994592]
[1724221708438,1.18881242,59811.0,59810.0,1.43994592]
[1724221708845,1.18881242,59811.0,59810.0,1.43994633]
[1724221709412,1.19081242,59811.0,59810.0,1.43994633]
[1724221709750,1.19081242,59811.0,59810.0,0.92066311]
[1724221709934,1.19081242,59811.0,59810.0,1.13965706]
[1724221709935,1.5468912,59811.0,59810.0,1.13965706]
[1724221710151,1.5488912,59811.0,59810.0,0.82066311]
[1724221710267,1.5488912,59811.0,59810.0,0.9322228]
[1724221710468,1.5488912,59811.0,59810.0,0.78381968]
[1724221710873,1.5478912,59811.0,59810.0,0.78381968]
[1724221711103,1.71189418,59811.0,59810.0,0.11321968]
[1724221711275,1.71189418,59811.0,59810.0,0.01219906]
[1724221711276,1.71089418,59811.0,59810.0,0.01219906]
[1724221711521,1.76249418,59811.0,59810.0,0.08621168]
[1724221711736,1.76249418,59811.0,59810.0,0.001]
[1724221711737,1.76149418,59811.0,59810.0,0.001]
[1724221712079,0.5988,59809.0,59808.0,0.07421168]
[1724221712362,0.78680298,59809.0,59808.0,0.07421168]
[1724221712576,0.6123,59808.0,59807.0,0.07421168]
[1724221712718,0.6123,59808.0,59800.0,0.12367536]
[1724221712719,0.005,59801.0,59800.0,0.12367536]
[1724221712918,0.003,59791.0,59790.0,0.03685463]
[1724221713130,0.4153,59791.0,59790.0,0.03685463]
[1724221713308,0.003,59788.0,59787.0,0.4]
[1724221713583,0.6113,59788.0,59787.0,0.4]
[1724221713788,0.61455564,59788.0,59787.0,0.4]
[1724221714193,0.005,59783.0,59781.0,0.52369155]
[1724221714394,0.5771,59782.0,59781.0,0.52369155]
[1724221714679,0.58030351,59782.0,59781.0,0.4]
[1724221714880,0.58230351,59782.0,59781.0,0.4]
[1724221715080,0.003,59777.0,59776.0,0.12369155]
[1724221715285,0.003,59776.0,59775.0,0.4]
[1724221715504,0.3956,59776.0,59775.0,0.4]
[1724221715721,0.39877825,59776.0,59775.0,0.4]
[1724221715927,0.003,59772.0,59771.0,0.12356808]
[1724221716133,0.4053,59774.0,59769.0,0.4]
[1724221716347,0.001,59771.0,59769.0,0.4]
[1724221716546,0.00179877,59770.0,59769.0,0.4]
[1724221716765,0.00497422,59770.0,59769.0,0.4]
[1724221716970,0.00175354,59771.0,59769.0,0.4]
[1724221717175,0.00175354,59771.0,59770.0,0.22350935]
[1724221717397,0.00175354,59771.0,59770.0,0.1]
[1724221717610,0.4053,59774.0,59770.0,0.22343213]
[1724221717818,0.4053,59774.0,59773.0,0.12341875]
[1724221718050,0.4053,59774.0,59773.0,0.22341875]
[1724221718257,0.4053,59774.0,59773.0,0.1]
[1724221718668,0.4062,59781.0,59778.0,0.4]
[1724221718874,0.4062,59781.0,59780.0,0.07401352]
[1724221719077,0.4062,59781.0,59779.0,0.1]
[1724221719508,0.4062,59781.0,59780.0,0.09866268]
[1724221719911,0.4062,59781.0,59780.0,0.09864167]
[1724221720801,0.44699535,59781.0,59780.0,0.09864167]
[1724221721051,0.4062,59781.0,59780.0,0.09864167]
[1724221721258,0.40427003,59781.0,59779.0,0.1]
[1724221721464,0.40427003,59781.0,59779.0,0.22330209]
[1724221721884,0.40527003,59781.0,59780.0,0.001]
[1724221722320,0.40427003,59781.0,59779.0,0.1]
[1724221722521,0.40327003,59781.0,59779.0,0.101]
[1724221722745,0.001,59781.0,59779.0,0.101]
[1724221722948,0.002,59781.0,59779.0,0.101]
[1724221723167,0.00175354,59788.0,59786.0,0.4]
[1724221723378,0.18356455,59782.0,59779.0,0.56291069]
[1724221723611,0.18356455,59782.0,59780.0,0.12321069]
[1724221723819,0.18356455,59782.0,59781.0,0.1]
[1724221724042,0.18356455,59782.0,59781.0,0.19855405]
[1724221724234,0.56446455,59782.0,59781.0,0.19855405]
[1724221724430,0.56446455,59782.0,59781.0,0.1]
[1724221724638,0.56446455,59782.0,59781.0,0.19855516]
[1724221725077,0.56546455,59782.0,59781.0,0.19855516]
[1724221725297,0.56646455,59782.0,59781.0,0.1]
[1724221725515,0.56546455,59782.0,59781.0,0.1]
[1724221725734,0.56646455,59782.0,59781.0,0.101]
[1724221726368,0.18456455,59782.0,59781.0,0.57066614]
[1724221726579,0.18556455,59782.0,59781.0,0.57166614]
[1724221727206,0.18556455,59782.0,59781.0,0.47311098]
[1724221727607,0.24223661,59782.0,59781.0,0.47311098]
[1724221728224,0.24223661,59782.0,59781.0,0.47401408]
[1724221729320,0.24223661,59782.0,59781.0,0.4740152]
[1724221730101,0.24223661,59782.0,59781.0,0.54790644]
[1724221730757,0.18556455,59782.0,59781.0,0.4740152]
[1724221730970,0.18556455,59782.0,59781.0,0.5479083]
[1724221731171,0.18556455,59782.0,59781.0,0.54791197]
[1724221731382,0.18556455,59782.0,59781.0,0.47401887]
[1724221736667,0.18556455,59782.0,59781.0,0.81802185]
[1724221737185,0.18556455,59782.0,59781.0,0.8548837]
[1724221737664,0.18456455,59782.0,59781.0,0.86403142]
[1724221737908,0.18556455,59782.0,59781.0,0.86603142]
[1724221738398,0.18556455,59782.0,59781.0,0.86503142]
[1724221738646,0.18456455,59782.0,59781.0,0.8548837]
[1724221738891,0.18556455,59782.0,59781.0,0.68781842]
[1724221739636,0.18556455,59782.0,59781.0,0.65095657]
[1724221739903,0.18556455,59782.0,59781.0,0.68781513]
[1724221740164,0.18556455,59782.0,59781.0,0.68783732]
[1724221740408,0.18556455,59782.0,59781.0,0.67168619]
[1724221740653,0.59336455,59782.0,59781.0,1.71347671]
[1724221740916,0.59336455,59782.0,59781.0,1.56562486]
[1724221742172,0.59336455,59782.0,59781.0,1.56566304]
[1724221742603,0.59336455,59782.0,59781.0,1.56566683]
[1724221746522,0.59336455,59782.0,59781.0,1.56566669]
[1724221746927,0.59336455,59782.0,59781.0,1.56566558]
[1724221747381,0.18556455,59782.0,59781.0,2.14766558]
[1724221747608,0.18556455,59782.0,59781.0,2.21133669]
[1724221747808,0.18556455,59782.0,59781.0,2.14766558]
[1724221747996,0.18556455,59782.0,59781.0,2.21133669]
[1724221749411,0.18556455,59782.0,59781.0,2.42989697]
[1724221749606,0.18556455,59782.0,59781.0,2.21133669]
[1724221751612,0.18556455,59782.0,59781.0,3.60805493]
[1724221751613,0.13688372,59782.0,59781.0,3.60805493]
[1724221751813,1.516622,59784.0,59783.0,1.409157]
[1724221752017,1.516622,59784.0,59783.0,2.87471398]
[1724221752242,1.516622,59784.0,59783.0,2.93135735]
[1724221752434,1.516622,59784.0,59783.0,2.93335735]
[1724221752636,1.516622,59784.0,59783.0,3.45281336]
[1724221753593,1.516622,59784.0,59783.0,3.78731336]
[1724221753833,1.517622,59784.0,59783.0,3.90084669]
[1724221754011,1.517622,59784.0,59783.0,3.91484669]
[1724221754372,1.517622,59784.0,59783.0,3.91476995]
[1724221755979,1.516622,59784.0,59783.0,3.90176995]
[1724221756383,1.516622,59784.0,59783.0,3.90159664]
[1724221756816,1.516622,59784.0,59783.0,3.91559664]
[1724221757025,1.516622,59784.0,59783.0,3.85595327]
[1724221757253,1.516622,59784.0,59783.0,3.4733156]
[1724221757474,1.516622,59784.0,59783.0,3.03827764]
[1724221757659,1.516622,59784.0,59783.0,3.05227764]
[1724221758504,1.516622,59784.0,59783.0,3.05230663]
[1724221758981,1.516622,59784.0,59783.0,3.40056163]
[1724221759173,1.516622,59784.0,59783.0,3.83659959]
[1724221759373,1.516622,59784.0,59783.0,3.86969862]
[1724221759571,1.516622,59784.0,59783.0,3.87069862]
[1724221759790,1.516622,59784.0,59783.0,3.80521459]
[1724221761004,1.516622,59784.0,59783.0,3.95356671]
[1724221761210,1.516622,59784.0,59783.0,3.839242]
[1724221761416,1.516622,59784.0,59783.0,3.80714631]
[1724221761791,1.516622,59784.0,59783.0,3.84124106]
[1724221761974,1.516622,59784.0,59783.0,3.64025114]
[1724221762172,1.516622,59784.0,59783.0,3.84123228]
[1724221762376,1.516622,59784.0,59783.0,3.64025114]
[1724221762556,1.516622,59784.0,59783.0,3.8412295]
[1724221763474,1.516622,59784.0,59783.0,6.2550975]
[1724221763683,1.516622,59784.0,59783.0,7.06646017]
[1724221764334,1.516622,59784.0,59783.0,6.25675068]
[1724221764564,1.516622,59784.0,59783.0,6.94245124]
[1724221765048,1.516622,59784.0,59783.0,6.15229431]
[1724221765429,1.516622,59784.0,59783.0,5.88511687]
[1724221765626,1.516622,59784.0,59783.0,6.6274608]
[1724221765829,1.516622,59784.0,59783.0,5.68413851]
[1724221765988,1.516622,59784.0,59783.0,6.21964956]
[1724221766196,1.516622,59784.0,59783.0,6.96199349]
[1724221769691,1.5136929,59784.0,59783.0,6.9619929]
[1724221769805,1.5136929,59784.0,59783.0,6.21964897]
[1724221770013,1.5136929,59784.0,59783.0,7.4783499]
[1724221770221,1.5136929,59784.0,59783.0,7.1324209]
[1724221770420,1.5136929,59784.0,59783.0,5.40249856]
[1724221770810,1.5136929,59784.0,59783.0,6.99426888]
[1724221771140,1.5136929,59784.0,59783.0,6.59543788]
[1724221771348,1.5136929,59784.0,59783.0,5.85409395]
[1724221771756,1.5136929,59784.0,59783.0,2.02149683]
[1724221771998,1.5136929,59784.0,59783.0,1.33807467]
[1724221772199,1.5136929,59784.0,59783.0,1.50534567]
[1724221772427,1.5136929,59784.0,59783.0,1.33807467]
[1724221773038,1.5136929,59784.0,59783.0,1.31007467]
[1724221773464,1.5136929,59784.0,59783.0,1.33807467]
[1724221773660,1.5136929,59784.0,59783.0,1.43808351]
[1724221773873,2.0962929,59784.0,59783.0,1.33808351]
[1724221774133,2.0962929,59784.0,59783.0,1.32408351]
[1724221774333,2.0962929,59784.0,59783.0,1.54272895]
[1724221774534,2.0962929,59784.0,59783.0,1.55672895]
[1724221774758,2.0962929,59784.0,59783.0,1.54272895]
[1724221774991,2.0962929,59784.0,59783.0,1.52872895]
[1724221775227,2.0962929,59784.0,59783.0,1.37872597]
[1724221775439,2.0962929,59784.0,59783.0,1.16008053]
[1724221776045,2.0962929,59784.0,59783.0,1.26008053]
[1724221776265,2.0962929,59784.0,59783.0,1.27408053]
[1724221776425,2.0962929,59784.0,59783.0,1.26008053]
[1724221777338,2.0962929,59784.0,59783.0,1.23722766]
[1724221777534,2.0962929,59784.0,59783.0,1.26008661]
[1724221777777,2.0962929,59784.0,59783.0,1.24608661]
[1724221777943,2.0962929,59784.0,59783.0,1.26008661]
[1724221778156,2.0962929,59784.0,59783.0,1.24608661]
[1724221778533,2.0962929,59784.0,59783.0,1.26008661]
[1724221779158,2.0962929,59784.0,59783.0,1.47873205]
[1724221779359,2.0962929,59784.0,59783.0,1.26008661]
[1724221779634,2.0962929,59784.0,59783.0,1.27408661]
[1724221779807,2.0962929,59784.0,59783.0,1.24608661]
[1724221780021,2.0962929,59784.0,59783.0,1.24625093]
[1724221780223,2.0962929,59784.0,59783.0,1.27425093]
[1724221780452,2.0962929,59784.0,59783.0,1.26025093]
[1724221780606,2.0962929,59784.0,59783.0,1.24625093]
[1724221780804,2.09609157,59784.0,59783.0,1.26025093]
[1724221781008,2.09609157,59784.0,59783.0,1.27425093]
[1724221781414,2.09609157,59784.0,59783.0,1.27425239]
[1724221782294,2.09609157,59784.0,59783.0,1.23739198]
[1724221784545,2.09609157,59784.0,59783.0,1.24239198]
[1724221784768,2.09609157,59784.0,59783.0,1.24238875]
[1724221788238,2.26007035,59784.0,59783.0,0.80408875]
[1724221788443,2.09609157,59784.0,59783.0,0.80408875]
[1724221788652,2.09609157,59784.0,59783.0,0.80499295]
[1724221789446,2.09609157,59784.0,59783.0,0.90499295]
[1724221791669,2.09609157,59784.0,59783.0,1.05320847]
[1724221791874,2.09609157,59784.0,59783.0,0.90499295]
[1724221794130,2.09609157,59784.0,59783.0,0.904989]
[1724221796725,1.91599157,59784.0,59783.0,0.904989]
[1724221797673,1.51349157,59784.0,59783.0,0.904989]
[1724221798314,1.51349157,59784.0,59783.0,0.94184948]
[1724221800182,1.51349157,59784.0,59783.0,0.94185064]
[1724221800591,1.51349157,59784.0,59783.0,0.90499016]
[1724221800780,1.51349157,59784.0,59783.0,0.94185005]
[1724221801364,1.59984505,59784.0,59783.0,0.94185005]
[1724221801766,1.51349157,59784.0,59783.0,0.94185005]
[1724221802549,1.51349157,59784.0,59783.0,0.94185077]
[1724221802767,1.51349157,59784.0,59783.0,0.94185084]
[1724221803783,1.51349157,59784.0,59783.0,0.94185129]
[1724221805855,1.89779157,59784.0,59783.0,0.94185129]
[1724221806003,2.06177035,59784.0,59783.0,0.94185129]
[1724221807235,2.06177035,59784.0,59783.0,1.09009049]
[1724221807436,2.06177035,59784.0,59783.0,0.94187267]
[1724221807644,2.06177035,59784.0,59783.0,0.90501226]
[1724221807817,2.25027035,59784.0,59783.0,0.94187619]
[1724221808247,2.08629157,59784.0,59783.0,0.94187619]
[1724221810442,2.08629157,59784.0,59783.0,1.09009401]
[1724221811078,2.08629157,59784.0,59783.0,0.94187619]
[1724221811301,1.89779157,59784.0,59783.0,0.94187619]
[1724221811504,1.89779157,59784.0,59783.0,1.09009401]
[1724221811860,1.89779157,59784.0,59783.0,1.05333857]
[1724221812057,1.89779157,59784.0,59783.0,1.09020256]
[1724221812504,1.89779157,59784.0,59783.0,0.94189541]
[1724221812680,2.06177035,59784.0,59783.0,0.94189541]
[1724221812881,1.89779157,59784.0,59783.0,0.94189541]
[1724221816221,1.89779157,59784.0,59783.0,0.94189564]
[1724221816592,1.89779157,59784.0,59783.0,1.68045854]
[1724221817535,1.89779157,59784.0,59783.0,1.46147376]
[1724221820020,1.51056227,59784.0,59783.0,1.46147376]
[1724221820439,1.51056227,59784.0,59783.0,1.46147118]
[1724221820852,1.51056227,59784.0,59783.0,1.46147114]
[1724221821268,1.50763362,59784.0,59783.0,1.46147114]
[1724221821852,1.50763362,59784.0,59783.0,1.42460954]
[1724221822055,1.50763362,59784.0,59783.0,1.4614711]
[1724221823225,1.50763362,59784.0,59783.0,1.47179874]
[1724221827616,1.50763362,59784.0,59783.0,1.4614711]
[1724221828776,2.08143362,59784.0,59783.0,1.4614711]
[1724221829123,1.88413362,59784.0,59783.0,1.4614711]
[1724221830525,1.50763362,59784.0,59783.0,0.57076576]
[1724221830652,1.50763362,59784.0,59783.0,1.46138399]
[1724221831781,1.6716124,59784.0,59783.0,1.46138399]
[1724221832157,1.50763362,59784.0,59783.0,1.46138399]
[1724221832379,1.50763362,59784.0,59783.0,1.42452243]
[1724221832749,1.50763362,59784.0,59783.0,1.46138271]
[1724221835536,1.50763362,59784.0,59783.0,1.46138303]
[1724221835767,1.50763362,59784.0,59783.0,1.06138303]
[1724221835957,1.88600485,59784.0,59783.0,1.06138303]
[1724221836950,1.50470485,59784.0,59783.0,1.06138303]
[1724221839108,1.50470485,59784.0,59783.0,1.06108517]
[1724221843709,1.50470485,59784.0,59783.0,1.02422457]
[1724221843846,1.50470485,59784.0,59783.0,1.06108484]
[1724221844336,1.89100485,59784.0,59783.0,1.06108484]
[1724221845517,1.89080353,59784.0,59783.0,1.06108484]
[1724221845970,1.89080353,59784.0,59783.0,1.22847379]
[1724221847627,1.89080353,59784.0,59783.0,1.22847414]
[1724221848345,1.89080353,59784.0,59783.0,1.29214248]
[1724221848549,1.99563565,59784.0,59783.0,1.29214248]
[1724221849364,1.89080353,59784.0,59783.0,1.29223312]
[1724221849573,1.89080353,59784.0,59783.0,1.29224012]
[1724221849845,1.50450353,59784.0,59783.0,1.29224012]
[1724221850361,1.92070353,59784.0,59783.0,1.12476026]
[1724221850621,1.92070353,59784.0,59783.0,1.06109192]
[1724221851202,2.10920353,59784.0,59783.0,1.06109192]
[1724221852195,2.10920353,59784.0,59783.0,0.96109192]
[1724221854085,2.10920353,59784.0,59783.0,0.96114075]
[1724221855291,2.10920353,59784.0,59783.0,0.92428013]
[1724221855467,2.10920353,59784.0,59783.0,0.96114281]
[1724221857239,2.27518231,59784.0,59783.0,0.96114281]
[1724221858095,2.27518231,59784.0,59783.0,0.94744067]
[1724221858296,2.27518231,59784.0,59783.0,0.93344067]
[1724221858506,2.07518231,59784.0,59783.0,0.44188096]
[1724221858821,2.07518231,59784.0,59783.0,0.42788096]
[1724221859033,2.07518231,59784.0,59783.0,0.42790209]
[1724221859425,3.54846739,59784.0,59783.0,0.42790209]
[1724221860148,3.54846739,59784.0,59783.0,0.41390209]
[1724221860353,3.54846739,59784.0,59783.0,0.42790232]
[1724221860479,3.54846739,59784.0,59783.0,0.44190232]
[1724221861952,3.54846739,59784.0,59783.0,0.44190445]
[1724221862983,3.38448861,59784.0,59783.0,0.40503964]
[1724221863189,3.38448861,59784.0,59783.0,0.44190445]
[1724221863565,3.54849159,59784.0,59783.0,0.44190445]
[1724221863974,3.54849159,59784.0,59783.0,0.40503964]
[1724221864176,3.71247037,59784.0,59783.0,0.40503964]
[1724221864905,3.71247037,59784.0,59783.0,0.37703964]
[1724221865140,3.71247037,59784.0,59783.0,0.39103964]
[1724221865344,3.71247037,59784.0,59783.0,0.40503964]
[1724221865538,3.71247037,59784.0,59783.0,0.50431009]
[1724221865746,3.71247037,59784.0,59783.0,0.50430576]
[1724221866138,3.71247037,59784.0,59783.0,0.49030576]
[1724221866289,3.71247037,59784.0,59783.0,0.40503964]
[1724221866473,3.71247037,59784.0,59783.0,0.39103964]
[1724221866884,3.71247037,59784.0,59783.0,0.40503964]
[1724221867364,3.71247037,59784.0,59783.0,0.0339042]
[1724221867516,3.71247037,59784.0,59783.0,0.0199042]
[1724221868009,3.71247037,59784.0,59783.0,0.0059042]
[1724221868213,3.71247037,59784.0,59783.0,0.0199042]
[1724221868439,3.71347037,59784.0,59783.0,0.40511745]
[1724221868647,3.71347037,59784.0,59783.0,0.40511705]
[1724221869373,3.71347037,59784.0,59783.0,0.47948154]
[1724221869812,3.71347037,59784.0,59783.0,0.46548154]
[1724221870009,3.71347037,59784.0,59783.0,0.47948154]
[1724221870431,3.71347037,59784.0,59783.0,0.10826869]
[1724221871370,3.71347037,59784.0,59783.0,0.0339042]
[1724221871979,3.71647037,59784.0,59783.0,0.0339042]
[1724221872396,3.71647037,59784.0,59783.0,0.08345274]
[1724221872617,3.71347037,59784.0,59783.0,0.08345274]
[1724221873017,3.71347037,59784.0,59778.0,0.12396824]
[1724221873018,0.001,59781.0,59779.0,0.03175398]
[1724221873321,0.001,59781.0,59761.0,0.21965623]
[1724221873322,0.001,59775.0,59774.0,0.04956286]
[1724221873517,0.001,59773.0,59772.0,0.04956286]
[1724221873747,0.72188176,59773.0,59772.0,0.04956286]
[1724221874355,0.001,59772.0,59771.0,0.04956286]
[1724221874570,0.16500298,59772.0,59771.0,0.04956286]
[1724221875337,0.16500298,59772.0,59770.0,0.04956286]
[1724221875566,0.55787878,59773.0,59770.0,0.04956286]
[1724221875567,0.31709361,59771.0,59770.0,0.04956286]
[1724221875718,0.16500298,59771.0,59770.0,0.04956286]
[1724221875923,0.001,59768.0,59767.0,0.09917459]
[1724221876269,0.001,59768.0,59767.0,0.1895]
[1724221876384,0.001,59768.0,59767.0,0.68452094]
[1724221876584,0.001,59768.0,59767.0,0.56074821]
[1724221876827,0.001,59768.0,59767.0,0.49502585]
[1724221877331,1.47428508,59768.0,59767.0,0.49502585]
[1724221877532,1.62271359,59768.0,59767.0,0.49502585]
[1724221878350,1.62271359,59768.0,59767.0,0.37124821]
[1724221878507,2.03071359,59768.0,59767.0,0.37124821]
[1724221878878,2.03171359,59768.0,59767.0,0.37924821]
[1724221879618,2.19571657,59768.0,59767.0,0.37924821]
[1724221880917,2.19571657,59768.0,59767.0,0.37924509]
[1724221881440,2.19571657,59768.0,59767.0,0.47823495]
[1724221882026,2.04828806,59768.0,59767.0,0.47823495]
[1724221882228,1.47628508,59768.0,59767.0,0.47823495]
[1724221883172,1.47628508,59768.0,59767.0,0.37924509]
[1724221884329,1.47628508,59768.0,59767.0,0.38014929]
[1724221885526,1.47628508,59768.0,59767.0,0.56804297]
[1724221886459,1.47528508,59768.0,59767.0,0.56804297]
[1724221887331,1.47528508,59768.0,59767.0,1.13032166]
[1724221887574,1.47428508,59768.0,59767.0,1.11871755]
[1724221887776,1.47528508,59768.0,59767.0,1.64945182]
[1724221887889,1.47528508,59768.0,59767.0,1.8134548]
[1724221888094,1.47528508,59768.0,59767.0,1.8364548]
[1724221888390,1.47328508,59768.0,59767.0,1.8174548]
[1724221888582,1.47328508,59768.0,59767.0,1.8314548]
[1724221888813,1.47428508,59768.0,59767.0,1.8314548]
[1724221889001,1.47328508,59768.0,59767.0,1.8174548]
[1724221889140,1.47428508,59768.0,59767.0,1.8314548]
[1724221890135,1.47428508,59768.0,59767.0,1.8454548]
[1724221890343,1.47428508,59768.0,59767.0,1.84519647]
[1724221890548,1.47428508,59768.0,59767.0,1.89588893]
[1724221890750,1.47428508,59768.0,59767.0,1.8958588]
[1724221890978,1.47428508,59768.0,59767.0,1.9098588]
[1724221891451,1.47328508,59768.0,59767.0,1.8818588]
[1724221891647,1.47328508,59768.0,59767.0,1.8808588]
[1724221891911,1.47428508,59768.0,59767.0,1.8958588]
[1724221892571,1.50052511,59768.0,59767.0,1.8948588]
[1724221892952,1.50052511,59768.0,59767.0,1.8958588]
[1724221893159,1.50052511,59768.0,59767.0,1.9088588]
[1724221893730,1.50052511,59768.0,59767.0,1.9098588]
[1724221894334,1.50052511,59768.0,59767.0,1.9088588]
[1724221894937,1.50052511,59768.0,59767.0,1.01814409]
[1724221895205,1.50052511,59768.0,59767.0,1.90882953]
[1724221895635,1.50052511,59768.0,59767.0,1.82215615]
[1724221896168,1.50052511,59768.0,59767.0,1.98922853]
[1724221896375,1.50134711,59768.0,59767.0,1.98922853]
[1724221896581,1.50134711,59768.0,59767.0,1.65815317]
[1724221901454,1.50134711,59768.0,59767.0,1.82525379]
[1724221902419,1.50134711,59768.0,59767.0,1.78839026]
[1724221902659,1.50134711,59768.0,59767.0,1.65815554]
[1724221902837,1.50134711,59768.0,59767.0,1.82525611]
[1724221904603,1.50134711,59768.0,59767.0,1.82215847]
[1724221905007,1.50134711,59768.0,59767.0,1.98947447]
[1724221905248,1.50134711,59768.0,59767.0,1.82215847]
[1724221905746,1.47510708,59768.0,59767.0,2.34710647]
[1724221905949,1.47510708,59768.0,59767.0,2.68173847]
[1724221906154,1.47510708,59768.0,59767.0,2.41078385]
[1724221906354,1.47510708,59768.0,59767.0,2.34710647]
[1724221906777,1.47510708,59768.0,59767.0,2.39678385]
[1724221907187,1.47510708,59768.0,59767.0,2.41078385]
[1724221907405,1.50134623,59768.0,59767.0,2.41078385]
[1724221907611,1.50134623,59768.0,59767.0,2.39678385]
[1724221907826,1.50034623,59768.0,59767.0,2.38278385]
[1724221908027,1.50034623,59768.0,59767.0,2.39678385]
[1724221908347,1.50034623,59768.0,59767.0,2.38278385]
[1724221908537,1.50034623,59768.0,59767.0,2.39678385]
[1724221909131,1.50034623,59768.0,59767.0,2.41078385]
[1724221909787,1.50034623,59768.0,59767.0,2.74541585]
[1724221909974,1.47410708,59768.0,59767.0,3.08004785]
[1724221910830,1.47390571,59768.0,59767.0,3.05204785]
[1724221911036,1.47390571,59768.0,59767.0,2.71741585]
[1724221911379,1.47390571,59768.0,59767.0,2.73141585]
[1724221911594,1.50014465,59768.0,59767.0,2.73141585]
[1724221912200,1.50014465,59768.0,59767.0,2.74541585]
[1724221913435,1.50014465,59768.0,59767.0,2.78298085]
[1724221914147,1.50014465,59768.0,59767.0,2.78296787]
[1724221914360,1.50014465,59768.0,59767.0,2.68243762]
[1724221914558,1.50014465,59768.0,59767.0,2.78296659]
[1724221914986,1.47390571,59768.0,59767.0,2.76896659]
[1724221915692,1.47390571,59768.0,59767.0,2.78296659]
[1724221916447,1.47390571,59768.0,59767.0,2.8834666]
[1724221917128,1.47390571,59768.0,59767.0,2.88346612]
[1724221917325,1.47401261,59768.0,59767.0,2.88346612]
[1724221917530,1.47401261,59768.0,59767.0,2.88346682]
[1724221917840,1.47401261,59768.0,59767.0,2.95049682]
[1724221918421,1.47401261,59768.0,59767.0,3.28612882]
[1724221918917,1.47401261,59768.0,59767.0,2.95049682]
[1724221919155,1.47401261,59768.0,59767.0,2.95149682]
[1724221919623,1.47401261,59768.0,59767.0,3.28612882]
[1724221920392,1.47401261,59768.0,59767.0,2.95049682]
[1724221920594,1.47401261,59768.0,59767.0,2.9504465]
[1724221921290,1.50025067,59768.0,59767.0,2.9514465]
[1724221921502,1.50025067,59768.0,59767.0,3.9514465]
[1724221922537,1.50025067,59768.0,59767.0,3.9504465]
[1724221922731,1.50025067,59768.0,59767.0,4.2860785]
[1724221922932,1.50025067,59768.0,59767.0,3.9504465]
[1724221923159,1.50025067,59768.0,59767.0,3.95043442]
[1724221924870,1.47401261,59768.0,59767.0,3.95143442]
[1724221925244,1.47401261,59768.0,59767.0,3.95143466]
[1724221925555,1.47401261,59768.0,59767.0,4.2186121]
[1724221925770,1.47401261,59768.0,59767.0,4.21861161]
[1724221926376,1.47401261,59768.0,59767.0,5.0284101]
[1724221926989,1.47401261,59768.0,59767.0,5.0144101]
[1724221927188,1.47401261,59768.0,59767.0,5.0134101]
[1724221927385,1.47401261,59768.0,59767.0,5.0144101]
[1724221928128,1.47401261,59768.0,59767.0,5.01439286]
[1724221928644,1.47401261,59768.0,59767.0,5.02839286]
[1724221928907,1.47401261,59768.0,59767.0,5.01439286]
[1724221929061,1.47401261,59768.0,59767.0,5.00039286]
[1724221929264,1.47401261,59768.0,59767.0,5.02839286]
[1724221929464,1.47401261,59768.0,59767.0,4.69276086]
[1724221929729,1.47401261,59768.0,59767.0,4.69376086]
[1724221929862,1.47401261,59768.0,59767.0,5.02939286]
[1724221930063,1.47401261,59768.0,59767.0,5.02839286]
[1724221930920,1.47401261,59768.0,59767.0,4.69376086]
[1724221931302,1.47401261,59768.0,59767.0,5.02839286]
[1724221931745,1.47401261,59768.0,59767.0,4.1378376]
[1724221931949,1.47401261,59768.0,59767.0,4.69376086]
[1724221932323,1.47401261,59768.0,59767.0,5.02839286]
[1724221932922,1.47401261,59768.0,59767.0,4.69276086]
[1724221936465,1.47401261,59768.0,59767.0,4.69281011]
[1724221937265,1.47401261,59768.0,59767.0,4.49176427]
[1724221937459,1.47401261,59768.0,59767.0,4.69281866]
[1724221940922,1.47401261,59768.0,59767.0,4.62915144]
[1724221941187,1.47401261,59768.0,59767.0,4.69281866]
[1724221944273,1.47401261,59768.0,59767.0,4.52862407]
[1724221944450,1.47401261,59768.0,59767.0,4.69281776]
[1724221944691,1.47401261,59768.0,59767.0,4.69281745]
[1724221946165,1.47401261,59768.0,59767.0,4.69281744]
[1724221950226,1.47401261,59768.0,59767.0,3.60975344]
[1724221950427,1.47401261,59768.0,59767.0,3.75648544]
[1724221951037,1.47401261,59768.0,59767.0,3.75654074]
[1724221951211,1.50025055,59768.0,59767.0,3.75654074]
[1724221952620,1.50025055,59768.0,59767.0,3.42190874]
[1724221952823,1.50025055,59768.0,59767.0,3.75654074]
[1724221953027,1.50025055,59768.0,59767.0,3.16457536]
[1724221953229,2.09795055,59768.0,59767.0,3.06457536]
[1724221953435,2.09795055,59768.0,59767.0,2.9640423]
[1724221954069,2.09795055,59768.0,59767.0,2.9500423]
[1724221954270,2.09795055,59768.0,59767.0,2.91244365]
[1724221954469,2.09795055,59768.0,59767.0,3.02644365]
[1724221954942,2.09795055,59768.0,59767.0,2.99844365]
[1724221955168,2.09795055,59768.0,59767.0,3.01244365]
[1724221955634,2.09795055,59768.0,59767.0,2.49293565]
[1724221955953,2.09795055,59768.0,59767.0,3.02654774]
[1724221957351,2.09795055,59768.0,59767.0,2.92601469]
[1724221957583,2.09795055,59768.0,59767.0,3.02655955]
[1724221958091,2.09502069,59768.0,59767.0,3.02655955]
[1724221958347,2.09502069,59768.0,59767.0,2.28421562]